fUST/lending_fUST_20260410
["ID","MTS","AMOUNT","RATE_DAILY","PERIOD"]
[420209676,1775779855931,-500.0,0.00020273,2]
[420209677,1775779855940,-500.0,0.00020273,2]
[420209678,1775779855963,-807.87,0.00020273,2]
[420209679,1775779855985,-500.0,0.00020273,2]
[420209680,1775779856005,-553.69,0.00020273,2]
[420209681,1775779856014,-651.39,0.00020273,2]
[420209682,1775779856039,-720.84,0.00020273,2]
[420209683,1775779856050,-500.0,0.00020273,2]
[420209684,1775779856060,-500.0,0.00020273,2]
[420209685,1775779856086,-500.0,0.00020273,2]
[420209686,1775779856096,-500.0,0.00020273,2]
[420209687,1775779856109,-500.0,0.00020273,2]
[420209688,1775779856126,-500.0,0.00020273,2]
[420209689,1775779856138,-500.0,0.00020273,2]
[420209690,1775779856149,-500.0,0.00020273,2]
[420209691,1775779856169,-500.0,0.00020273,2]
[420209692,1775779856181,-500.0,0.00020273,2]
[420209693,1775779856191,-500.0,0.00020273,2]
[420209694,1775779856200,-500.0,0.00020273,2]
[420209695,1775779856222,-500.0,0.00020273,2]
[420209696,1775779856248,-500.0,0.00020273,2]
[420209697,1775779856271,-500.0,0.00020273,2]
[420209698,1775779856288,-1186.88,0.00020273,2]
[420209699,1775779856297,-1501.57,0.00020273,2]
[420209700,1775779856316,-500.0,0.00020273,2]
[420209701,1775779856328,-500.0,0.00020273,2]
[420209702,1775779856346,-500.0,0.00020273,2]
[420209703,1775779856356,-500.0,0.00020273,2]
[420209704,1775779856373,-500.0,0.00020273,2]
[420209705,1775779856385,-855.36,0.00020273,2]
[420209706,1775779856405,-848.22,0.00020273,2]
[420209707,1775779856416,-1458.0,0.00020273,2]
[420209708,1775779856426,-625.18,0.00020273,2]
[420209709,1775779856437,-500.0,0.00020273,2]
[420209710,1775779856450,-500.0,0.00020273,2]
[420209711,1775779856461,-500.0,0.00020273,2]
[420209712,1775779856472,-500.0,0.00020273,2]
[420209713,1775779856482,-500.0,0.00020273,2]
[420209714,1775779856509,-1468.54,0.00020273,2]
[420209715,1775779856519,-500.0,0.00020273,2]
[420209716,1775779856530,-1156.33,0.00020273,2]
[420209717,1775779856544,-1094.87,0.00020273,2]
[420209718,1775779856566,-1345.24,0.00020273,2]
[420209719,1775779856586,-3961.21,0.00020273,2]
[420209720,1775779856609,-899.64,0.00020273,2]
[420209721,1775779856621,-500.0,0.00020273,2]
[420209722,1775779856639,-500.0,0.00020273,2]
[420209723,1775779856651,-500.0,0.00020273,2]
[420209724,1775779856681,-688.44,0.00020273,2]
[420209725,1775779856690,-500.0,0.00020273,2]
[420209726,1775779856738,-500.0,0.00020273,2]
[420209727,1775779856763,-1402.6,0.00020273,2]
[420209728,1775779856779,-1256.66,0.00020273,2]
[420209729,1775779856788,-258.55681809,0.00020273,2]
[420209730,1775779856811,-739.51,0.00020273,2]
[420209731,1775779856820,-500.0,0.00020273,2]
[420209732,1775779856830,-500.0,0.00020273,2]
[420209733,1775779856852,-4304.05,0.00020273,2]
[420209734,1775779856872,-500.0,0.00020273,2]
[420209735,1775779856882,-500.0,0.00020273,2]
[420209736,1775779856912,-1205.36,0.00020273,2]
[420209737,1775779856937,-500.0,0.00020273,2]
[420209738,1775779856965,-500.0,0.00020273,2]
[420209739,1775779856975,-1630.49,0.00020273,2]
[420209740,1775779856999,-1229.33,0.00020273,2]
[420209741,1775779857009,-1119.2,0.00020273,2]
[420209742,1775779857031,-1214.93,0.00020273,2]
[420209743,1775779857042,-1078.05,0.00020273,2]
[420209744,1775779857051,-500.0,0.00020273,2]
[420209745,1775779857071,-500.0,0.00020273,2]
[420209746,1775779857087,-1308.18,0.00020273,2]
[420209747,1775779857096,-500.0,0.00020273,2]
[420209748,1775779857105,-500.0,0.00020273,2]
[420209749,1775779857118,-889.22,0.00020273,2]
[420209750,1775779857127,-500.0,0.00020273,2]
[420209751,1775779857136,-500.0,0.00020273,2]
[420209752,1775779857146,-614.19,0.00020273,2]
[420209753,1775779857155,-614.19,0.00020273,2]
[420209754,1775779857165,-614.19,0.00020273,2]
[420209755,1775779857176,-614.19,0.00020273,2]
[420209756,1775779857185,-793.9,0.00020273,2]
[420209757,1775779857196,-200.0,0.0002028,2]
[420209758,1775779857207,-4742.185099,0.00020381,2]
[420209759,1775779857216,-1000.0,0.00020485,2]
[420209760,1775779857226,-1000.0,0.00020485,2]
[420209761,1775779857236,-1000.0,0.00020485,2]
[420209762,1775779857250,-1000.0,0.00020485,2]
[420209763,1775779857259,-331.58691595,0.00020485,2]
[420209764,1775779857268,-1249.83,0.00020498,2]
[420209765,1775779857281,-500.0,0.00020547,2]
[420209766,1775779857294,-603.86301684,0.00020547,2]
[420209767,1775779857303,-500.0,0.00020547,2]
[420209768,1775779857313,-827.76,0.00020547,2]
[420209769,1775779857327,-1925.0203,0.00020547,2]
[420209770,1775779857337,-500.0,0.00020547,2]
[420209771,1775779857346,-500.0,0.00020547,2]
[420209772,1775779857355,-500.0,0.00020547,2]
[420209773,1775779857366,-500.0,0.00020547,2]
[420209774,1775779857376,-500.0,0.00020547,2]
[420209775,1775779857388,-500.0,0.00020547,2]
[420209776,1775779857398,-625.56845049,0.00020547,2]
[420209777,1775779857407,-407.81306847,0.00020547,2]
[420209778,1775779857416,-500.0,0.00020547,2]
[420209779,1775779857425,-500.0,0.00020547,2]
[420209780,1775779857436,-500.0,0.00020547,2]
[420209781,1775779857445,-716.91,0.00020547,2]
[420209782,1775779857454,-500.0,0.00020547,2]
[420209783,1775779857463,-500.0,0.00020547,2]
[420209784,1775779857473,-1189.73,0.00020547,2]
[420209785,1775779857483,-500.0,0.00020547,2]
[420209786,1775779857493,-879.69,0.00020547,2]
[420209787,1775779857502,-500.0,0.00020547,2]
[420209788,1775779857511,-500.0,0.00020547,2]
[420209789,1775779857522,-712.73,0.00020547,2]
[420209790,1775779857532,-500.0,0.00020547,2]
[420209791,1775779857542,-500.0,0.00020547,2]
[420209792,1775779857552,-506.46,0.00020547,2]
[420209793,1775779857561,-500.0,0.00020547,2]
[420209794,1775779857577,-1886.04,0.00020547,2]
[420209795,1775779857587,-500.0,0.00020547,2]
[420209796,1775779857597,-500.0,0.00020547,2]
[420209797,1775779857611,-1411.95,0.00020547,2]
[420209798,1775779857625,-500.0,0.00020547,2]
[420209799,1775779857651,-500.0,0.00020547,2]
[420209800,1775779857661,-527.9,0.00020547,2]
[420209801,1775779857687,-500.0,0.00020547,2]
[420209802,1775779857700,-500.0,0.00020547,2]
[420209803,1775779857712,-693.03,0.00020547,2]
[420209804,1775779857724,-500.0,0.00020547,2]
[420209805,1775779857736,-500.0,0.00020547,2]
[420209806,1775779857751,-500.0,0.00020547,2]
[420209807,1775779857760,-500.0,0.00020547,2]
[420209808,1775779857777,-500.0,0.00020547,2]
[420209809,1775779857795,-807.87,0.00020547,2]
[420209810,1775779857804,-500.0,0.00020547,2]
[420209811,1775779857813,-553.69,0.00020547,2]
[420209812,1775779857832,-651.39,0.00020547,2]
[420209813,1775779857844,-720.84,0.00020547,2]
[420209814,1775779857854,-500.0,0.00020547,2]
[420209815,1775779857868,-500.0,0.00020547,2]
[420209816,1775779857907,-500.0,0.00020547,2]
[420209817,1775779857917,-500.0,0.00020547,2]
[420209818,1775779857939,-500.0,0.00020547,2]
[420209819,1775779857951,-500.0,0.00020547,2]
[420209820,1775779857964,-500.0,0.00020547,2]
[420209821,1775779857996,-500.0,0.00020547,2]
[420209822,1775779858007,-500.0,0.00020547,2]
[420209823,1775779858040,-500.0,0.00020547,2]
[420209824,1775779858051,-500.0,0.00020547,2]
[420209825,1775779858118,-445.07142633,0.00020547,2]
[420209826,1775779858152,-500.0,0.00020547,2]
[420209827,1775779858182,-500.0,0.00020547,2]
[420209828,1775779858193,-500.0,0.00020547,2]
[420209829,1775779858210,-1186.88,0.00020547,2]
[420209830,1775779858227,-1501.57,0.00020547,2]
[420209831,1775779858238,-500.0,0.00020547,2]
[420209832,1775779858270,-500.0,0.00020547,2]
[420209833,1775779858284,-630.10902752,0.00020547,2]
[420209834,1775779858302,-500.0,0.00020547,2]
[420209835,1775779858398,-500.0,0.00020547,2]
[420209836,1775779858425,-855.36,0.00020547,2]
[420209837,1775779858435,-848.22,0.00020547,2]
[420209838,1775779858447,-1458.0,0.00020547,2]
[420209839,1775779858467,-625.18,0.00020547,2]
[420209840,1775779858489,-500.0,0.00020547,2]
[420209841,1775779858501,-500.0,0.00020547,2]
[420209842,1775779858517,-500.0,0.00020547,2]
[420209843,1775779858527,-500.0,0.00020547,2]
[420209844,1775779858539,-500.0,0.00020547,2]
[420209845,1775779858556,-1468.54,0.00020547,2]
[420209846,1775779858582,-224.09699915,0.00020547,2]
[420209847,1775779858592,-1156.33,0.00020547,2]
[420209848,1775779858614,-1094.87,0.00020547,2]
[420209849,1775779858627,-1345.24,0.00020547,2]
[420209850,1775779858642,-3961.21,0.00020547,2]
[420209851,1775779858670,-899.64,0.00020547,2]
[420209852,1775779858680,-500.0,0.00020547,2]
[420209853,1775779858707,-500.0,0.00020547,2]
[420209854,1775779858724,-283.70388664,0.00020547,2]
[420209855,1775779858740,-688.44,0.00020547,2]
[420209856,1775779858753,-500.0,0.00020547,2]
[420209857,1775779858790,-500.0,0.00020547,2]
[420209858,1775779858800,-1402.6,0.00020547,2]
[420209859,1775779858822,-1256.66,0.00020547,2]
[420209860,1775779858833,-739.51,0.00020547,2]
[420209861,1775779858847,-500.0,0.00020547,2]
[420209862,1775779858868,-500.0,0.00020547,2]
[420209863,1775779858875,-4304.05,0.00020547,2]
[420209864,1775779858886,-500.0,0.00020547,2]
[420209865,1775779858909,-351.46254311,0.00020547,2]
[420209866,1775779858919,-1205.36,0.00020547,2]
[420209867,1775779858930,-500.0,0.00020547,2]
[420209868,1775779858950,-184.70752371,0.00020547,2]
[420209869,1775779858961,-1630.49,0.00020547,2]
[420209870,1775779858973,-1229.33,0.00020547,2]
[420209871,1775779858982,-1119.2,0.00020547,2]
[420209872,1775779859020,-1214.93,0.00020547,2]
[420209873,1775779859029,-1078.05,0.00020547,2]
[420209874,1775779859041,-609.6404058,0.00020547,2]
[420209875,1775779859060,-500.0,0.00020547,2]
[420209876,1775779859070,-1308.18,0.00020547,2]
[420209877,1775779859095,-500.0,0.00020547,2]
[420209878,1775779859104,-500.0,0.00020547,2]
[420209879,1775779859118,-889.22,0.00020547,2]
[420209880,1775779859134,-500.0,0.00020547,2]
[420209881,1775779859143,-500.0,0.00020547,2]
[420209882,1775779859154,-2352.9456841,0.00020657,2]
[420209883,1775779859172,-8564.1164302,0.00020657,2]
[420209884,1775779859182,-800.0,0.00020741,2]
[420209885,1775779859192,-600.0,0.000208,2]
[420209886,1775779859201,-2553.33188134,0.00020811,2]
[420209887,1775779859215,-889.24,0.00020812,3]
[420209888,1775779859232,-444.62,0.00020812,3]
[420209889,1775779859243,-500.0,0.00020821,2]
[420209890,1775779859251,-500.0,0.00020821,2]
[420209891,1775779859261,-827.76,0.00020821,2]
[420209892,1775779859278,-1925.0203,0.00020821,2]
[420209893,1775779859296,-500.0,0.00020821,2]
[420209894,1775779859306,-500.0,0.00020821,2]
[420209895,1775779859315,-500.0,0.00020821,2]
[420209896,1775779859325,-500.0,0.00020821,2]
[420209897,1775779859342,-500.0,0.00020821,2]
[420209898,1775779859363,-500.0,0.00020821,2]
[420209899,1775779859373,-500.0,0.00020821,2]
[420209900,1775779859384,-500.0,0.00020821,2]
[420209901,1775779859402,-500.0,0.00020821,2]
[420209902,1775779859424,-716.91,0.00020821,2]
[420209903,1775779859434,-500.0,0.00020821,2]
[420209904,1775779859459,-500.0,0.00020821,2]
[420209905,1775779859469,-1189.73,0.00020821,2]
[420209906,1775779859486,-500.0,0.00020821,2]
[420209907,1775779859513,-879.69,0.00020821,2]
[420209908,1775779859523,-500.0,0.00020821,2]
[420209909,1775779859542,-500.0,0.00020821,2]
[420209910,1775779859554,-712.73,0.00020821,2]
[420209911,1775779859578,-500.0,0.00020821,2]
[420209912,1775779859588,-500.0,0.00020821,2]
[420209913,1775779859604,-506.46,0.00020821,2]
[420209914,1775779859615,-500.0,0.00020821,2]
[420209915,1775779859639,-1886.04,0.00020821,2]
[420209916,1775779859649,-500.0,0.00020821,2]
[420209917,1775779859671,-500.0,0.00020821,2]
[420209918,1775779859721,-1411.95,0.00020821,2]
[420209919,1775779859741,-328.19079888,0.00020821,2]
[420209920,1775779859766,-500.0,0.00020821,2]
[420209921,1775779859790,-527.9,0.00020821,2]
[420209922,1775779859809,-500.0,0.00020821,2]
[420209923,1775779859827,-500.0,0.00020821,2]
[420209924,1775779859840,-693.03,0.00020821,2]
[420209925,1775779859857,-577.88060341,0.00020821,2]
[420209926,1775779859868,-500.0,0.00020821,2]
[420209927,1775779859878,-500.0,0.00020821,2]
[420209928,1775779859892,-500.0,0.00020821,2]
[420209929,1775779859904,-500.0,0.00020821,2]
[420209930,1775779859918,-807.87,0.00020821,2]
[420209931,1775779859937,-500.0,0.00020821,2]
[420209932,1775779859947,-553.69,0.00020821,2]
[420209933,1775779859965,-651.39,0.00020821,2]
[420209934,1775779859990,-720.84,0.00020821,2]
[420209935,1775779860000,-500.0,0.00020821,2]
[420209936,1775779860011,-500.0,0.00020821,2]
[420209937,1775779860030,-500.0,0.00020821,2]
[420209938,1775779860041,-500.0,0.00020821,2]
[420209939,1775779860052,-500.0,0.00020821,2]
[420209940,1775779860083,-500.0,0.00020821,2]
[420209941,1775779860093,-500.0,0.00020821,2]
[420209942,1775779860131,-500.0,0.00020821,2]
[420209943,1775779860141,-162.33730119,0.00020821,2]
[420209944,1775779860168,-400.13492815,0.00020821,2]
[420209945,1775779860180,-500.0,0.00020821,2]
[420209946,1775779860193,-500.0,0.00020821,2]
[420209947,1775779860205,-500.0,0.00020821,2]
[420209948,1775779860215,-500.0,0.00020821,2]
[420209949,1775779860227,-1186.88,0.00020821,2]
[420209950,1775779860243,-1501.57,0.00020821,2]
[420209951,1775779860252,-500.0,0.00020821,2]
[420209952,1775779860263,-500.0,0.00020821,2]
[420209953,1775779860281,-500.0,0.00020821,2]
[420209954,1775779860290,-547.76214993,0.00020821,2]
[420209955,1775779860311,-855.36,0.00020821,2]
[420209956,1775779860320,-848.22,0.00020821,2]
[420209957,1775779860329,-1458.0,0.00020821,2]
[420209958,1775779860349,-625.18,0.00020821,2]
[420209959,1775779860359,-500.0,0.00020821,2]
[420209960,1775779860368,-500.0,0.00020821,2]
[420209961,1775779860378,-500.0,0.00020821,2]
[420209962,1775779860397,-500.0,0.00020821,2]
[420209963,1775779860405,-500.0,0.00020821,2]
[420209964,1775779860414,-1468.54,0.00020821,2]
[420209965,1775779860426,-1156.33,0.00020821,2]
[420209966,1775779860439,-1094.87,0.00020821,2]
[420209967,1775779860448,-1345.24,0.00020821,2]
[420209968,1775779860461,-3961.21,0.00020821,2]
[420209969,1775779860470,-899.64,0.00020821,2]
[420209970,1775779860479,-500.0,0.00020821,2]
[420209971,1775779860498,-500.0,0.00020821,2]
[420209972,1775779860508,-688.44,0.00020821,2]
[420209973,1775779860525,-500.0,0.00020821,2]
[420209974,1775779860535,-500.0,0.00020821,2]
[420209975,1775779860544,-1402.6,0.00020821,2]
[420209976,1775779860554,-1256.66,0.00020821,2]
[420209977,1775779860564,-739.51,0.00020821,2]
[420209978,1775779860575,-500.0,0.00020821,2]
[420209979,1775779860584,-500.0,0.00020821,2]
[420209980,1775779860596,-4304.05,0.00020821,2]
[420209981,1775779860607,-500.0,0.00020821,2]
[420209982,1775779860617,-1205.36,0.00020821,2]
[420209983,1775779860627,-500.0,0.00020821,2]
[420209984,1775779860639,-1630.49,0.00020821,2]
[420209985,1775779860649,-1229.33,0.00020821,2]
[420209986,1775779860658,-1214.93,0.00020821,2]
[420209987,1775779860666,-1119.2,0.00020821,2]
[420209988,1775779860685,-1078.05,0.00020821,2]
[420209989,1775779860695,-500.0,0.00020821,2]
[420209990,1775779860722,-1308.18,0.00020821,2]
[420209991,1775779860732,-500.0,0.00020821,2]
[420209992,1775779860742,-500.0,0.00020821,2]
[420209993,1775779860757,-889.22,0.00020821,2]
[420209994,1775779860769,-501.07,0.00020821,2]
[420209995,1775779860778,-500.0,0.00020821,2]
[420209996,1775779860786,-1486.19696491,0.00020878,2]
[420209997,1775779860800,-500.0,0.000209,2]
[420209998,1775779860808,-500.0,0.000209,2]
[420209999,1775779860818,-500.0,0.000209,2]
[420210000,1775779860832,-500.0,0.000209,2]
[420210001,1775779860841,-500.0,0.000209,2]
[420210002,1775779860851,-500.0,0.000209,2]
[420210003,1775779860864,-678.15284929,0.000209,2]
[420210004,1775779860875,-153332.51122944,0.000209,2]
[420210005,1775779861072,-25528.01937845,0.000209,2]
[420210006,1775779861083,-126594.87979481,0.000209,2]
[420210007,1775779861097,-25849.86678596,0.000209,2]
[420210008,1775779861116,-1225.22833613,0.000209,2]
[420210009,1775779861127,-29242.93993432,0.000209,2]
[420210010,1775779861143,-2784.0,0.000209,2]
[420210014,1775780595562,-300.0,9.999e-05,2]
[420210015,1775780595598,-300.0,9.999e-05,2]
[420210016,1775780595633,-300.0,9.999e-05,2]
[420210017,1775780595671,-300.0,9.999e-05,2]
[420210018,1775780595698,-4500.0,0.0001,2]
[420210019,1775781002477,154.06,9e-05,2]
[420210023,1775781031876,-154.06,9.4e-05,2]
[420210024,1775781031886,-154.06,9.9e-05,2]
[420210025,1775781031909,-300.0,9.999e-05,2]
[420210026,1775781031918,-14553.7646949,0.0001,2]
[420210029,1775781032028,-619.55233372,0.0001,2]
[420210031,1775781032044,-358.38,0.0001,2]
[420210032,1775781032063,-777.89378841,0.0001,2]
[420210033,1775781032080,-1343.7500641,0.0001,2]
[420210034,1775781032092,-1163.20743793,0.0001,2]
[420210035,1775781032119,-4812.14487305,0.0001,2]
[420210036,1775781032129,-2377.95410318,0.0001,2]
[420210220,1775781038453,-1925.81703556,0.0001,2]
[420210221,1775781038469,-1267.34184314,0.0001,2]
[420210222,1775781038479,-827.94804162,0.0001,2]
[420210223,1775781038527,-151.0,0.00010799,2]
[420210225,1775781038546,-233.721803,0.00013495,2]
[420210227,1775781038588,-151.0,0.00013499,2]
[420210229,1775781038598,-151.0,0.00013499,2]
[420210230,1775781038631,-1000.0,0.00013699,2]
[420210232,1775781038642,-1325.64847745,0.00014893,2]
[420210235,1775781038668,-609.721,0.00014893,2]
[420210237,1775781038679,-6347.69999997,0.00014893,2]
[420210238,1775781038691,-373.31955435,0.00014893,2]
[420210240,1775781038706,-3539.39567689,0.00014893,2]
[420210242,1775781038716,-437.60243476,0.00017542,2]
[420210308,1775781041208,-62.39756524,0.00017542,2]
[420210309,1775781041227,-500.0,0.00017542,2]
[420210310,1775781041248,-500.0,0.00017542,2]
[420210311,1775781041257,-500.0,0.00017542,2]
[420210312,1775781041267,-500.0,0.00017542,2]
[420210313,1775781041288,-130.59045495,0.00017542,2]
[420210314,1775781041300,-369.40954505,0.00017542,2]
[420210315,1775781041310,-500.0,0.00017542,2]
[420210317,1775781041343,-500.0,0.00017542,2]
[420210318,1775781041354,-500.0,0.00017542,2]
[420210320,1775781041367,-500.0,0.00017542,2]
[420210321,1775781041396,-500.0,0.00017542,2]
[420210323,1775781041411,-500.0,0.00017542,2]
[420210325,1775781041473,-500.0,0.00017542,2]
[420210327,1775781041496,-500.0,0.00017542,2]
[420210329,1775781041507,-500.0,0.00017542,2]
[420210330,1775781041559,-500.0,0.00017542,2]
[420210332,1775781041571,-500.0,0.00017542,2]
[420210333,1775781041595,-500.0,0.00017542,2]
[420210334,1775781041604,-500.0,0.00017542,2]
[420210335,1775781041624,-500.0,0.00017542,2]
[420210336,1775781041633,-500.0,0.00017542,2]
[420210337,1775781041656,-500.0,0.00017542,2]
[420210338,1775781041681,-500.0,0.00017542,2]
[420210339,1775781041691,-500.0,0.00017542,2]
[420210340,1775781041700,-500.0,0.00017542,2]
[420210341,1775781041718,-500.0,0.00017542,2]
[420210342,1775781041728,-500.0,0.00017542,2]
[420210343,1775781041743,-500.0,0.00017542,2]
[420210344,1775781041753,-500.0,0.00017542,2]
[420210345,1775781041765,-500.0,0.00017542,2]
[420210346,1775781041779,-500.0,0.00017542,2]
[420210347,1775781041792,-500.0,0.00017542,2]
[420210348,1775781041801,-500.0,0.00017542,2]
[420210349,1775781041812,-500.0,0.00017542,2]
[420210350,1775781041827,-500.0,0.00017542,2]
[420210351,1775781041839,-500.0,0.00017542,2]
[420210352,1775781041860,-500.0,0.00017542,2]
[420210353,1775781041869,-272.27234909,0.00017542,2]
[420210354,1775781041878,-500.0,0.00017542,2]
[420210355,1775781041890,-500.0,0.00017542,2]
[420210356,1775781041910,-500.0,0.00017542,2]
[420210357,1775781041920,-500.0,0.00017542,2]
[420210358,1775781041936,-500.0,0.00017542,2]
[420210359,1775781041954,-500.0,0.00017546,2]
[420210360,1775781041963,-1626.017433,0.00018367,2]
[420210361,1775781041986,-500.0,0.0001847,2]
[420210362,1775781041999,-123.50788829,0.00018873,2]
[420210367,1775781043609,-1320.28848885,0.00018873,2]
[420210368,1775781043618,-537.6845,0.00018873,2]
[420210369,1775781043633,-264.15,0.00019,2]
[420210370,1775781043644,-4034.25,0.00019168,3]
[420210371,1775781043654,-493.87701115,0.00019168,3]
[420210380,1775781047928,-1523.25298885,0.00019168,3]
[420210381,1775781047943,-1008.56,0.00019168,3]
[420210382,1775781047952,-252.18701115,0.00019168,3]
[420210383,1775781048002,-252.09298885,0.00019168,3]
[420210384,1775781048017,-252.14,0.00019168,3]
[420210385,1775781048027,-756.46,0.00019168,3]
[420210386,1775781048037,-513.21887216,0.00019177,2]
[420210387,1775781048049,-513.21887216,0.00019177,2]
[420210388,1775781048059,-513.21887216,0.00019177,2]
[420210389,1775781048069,-513.21887216,0.00019177,2]
[420210390,1775781048080,-513.21887216,0.00019177,2]
[420210391,1775781048093,-513.21887216,0.00019177,2]
[420210392,1775781048103,-513.21887216,0.00019177,2]
[420210393,1775781048118,-513.21887216,0.00019177,2]
[420210394,1775781048127,-513.21887216,0.00019177,2]
[420210395,1775781048139,-513.21887216,0.00019177,2]
[420210396,1775781048149,-513.21887216,0.00019177,2]
[420210397,1775781048159,-513.21887216,0.00019177,2]
[420210398,1775781048168,-513.21887216,0.00019177,2]
[420210399,1775781048179,-513.21887216,0.00019177,2]
[420210400,1775781048192,-500.0,0.00019177,2]
[420210401,1775781048201,-378.12067045,0.00019177,2]
[420210402,1775781048210,-500.0,0.00019177,2]
[420210403,1775781048223,-500.0,0.00019177,2]
[420210404,1775781048235,-500.0,0.00019177,2]
[420210405,1775781048244,-318.78083074,0.00019177,2]
[420210406,1775781048253,-521.11454713,0.00019177,2]
[420210407,1775781048271,-521.11454713,0.00019177,2]
[420210408,1775781048280,-521.11454713,0.00019177,2]
[420210409,1775781048298,-521.11454713,0.00019177,2]
[420210410,1775781048311,-521.11454713,0.00019177,2]
[420210411,1775781048321,-521.11454713,0.00019177,2]
[420210412,1775781048349,-521.11454713,0.00019177,2]
[420210413,1775781048359,-567.62261961,0.00019177,2]
[420210414,1775781048386,-567.62261961,0.00019177,2]
[420210415,1775781048395,-567.62261961,0.00019177,2]
[420210416,1775781048405,-500.0,0.00019178,2]
[420210417,1775781048440,-500.0,0.00019178,2]
[420210418,1775781048464,-500.0,0.00019178,2]
[420210419,1775781048540,-376.49939791,0.00019178,2]
[420210421,1775781048592,-500.0,0.00019178,2]
[420210423,1775781048604,-500.0,0.00019178,2]
[420210425,1775781048632,-500.0,0.00019178,2]
[420210427,1775781048657,-500.0,0.00019178,2]
[420210428,1775781048668,-572.24,0.00019178,2]
[420210430,1775781048696,-500.0,0.00019178,2]
[420210431,1775781048722,-500.0,0.00019178,2]
[420210433,1775781048731,-500.0,0.00019178,2]
[420210434,1775781048759,-500.0,0.00019178,2]
[420210435,1775781048785,-510.59,0.00019178,2]
[420210436,1775781048795,-487.84521899,0.00019178,2]
[420210437,1775781048810,-500.0,0.00019178,2]
[420210438,1775781048831,-500.0,0.00019178,2]
[420210439,1775781048840,-500.0,0.00019178,2]
[420210440,1775781048849,-500.0,0.00019178,2]
[420210441,1775781048858,-500.0,0.00019178,2]
[420210442,1775781048874,-500.0,0.00019178,2]
[420210443,1775781048883,-500.0,0.00019178,2]
[420210444,1775781048895,-500.0,0.00019178,2]
[420210445,1775781048909,-1335.94,0.00019178,2]
[420210446,1775781048923,-500.0,0.00019178,2]
[420210447,1775781048932,-500.0,0.00019178,2]
[420210448,1775781048967,-623.11,0.00019178,2]
[420210449,1775781048977,-1201.85,0.00019178,2]
[420210450,1775781048986,-500.0,0.00019178,2]
[420210451,1775781049016,-500.0,0.00019178,2]
[420210452,1775781049026,-500.0,0.00019178,2]
[420210453,1775781049051,-500.0,0.00019178,2]
[420210454,1775781049063,-507.81,0.00019178,2]
[420210455,1775781049085,-500.0,0.00019178,2]
[420210456,1775781049101,-500.0,0.00019178,2]
[420210457,1775781049128,-500.0,0.00019178,2]
[420210458,1775781049152,-500.0,0.00019178,2]
[420210459,1775781049162,-600.83,0.00019178,2]
[420210460,1775781049172,-500.0,0.00019178,2]
[420210461,1775781049190,-500.0,0.00019178,2]
[420210462,1775781049209,-500.0,0.00019178,2]
[420210463,1775781049219,-500.0,0.00019178,2]
[420210464,1775781049233,-759.16,0.00019178,2]
[420210465,1775781049244,-500.0,0.00019178,2]
[420210466,1775781049254,-500.0,0.00019178,2]